[Event "Late-Titled-Tuesday-Blitz-May-07-2024"]
[Site "Chess.com"]
[Date "2024.05.07"]
[Round "2"]
[White "realburq"]
[Black "rdarruda"]
[Result "0-1"]
[WhiteElo "2343"]
[BlackElo "2554"]
[TimeControl "180+1"]
[EndTime "14:17:25 PDT"]
[Termination "rdarruda won on time"]

1. e4 {[%clk 0:03:00.9]} 1... c5 {[%clk 0:02:58.9]} 2. c3 {[%clk 0:03:00.7]}
2... e6 {[%clk 0:02:58.4]} 3. d4 {[%clk 0:03:00.2]} 3... cxd4 {[%clk 0:02:57.7]}
4. cxd4 {[%clk 0:02:59.7]} 4... d5 {[%clk 0:02:58.3]} 5. e5 {[%clk 0:02:53.5]}
5... Nc6 {[%clk 0:02:57.8]} 6. Nf3 {[%clk 0:02:51.1]} 6... Nge7 {[%clk
0:02:57.4]} 7. Bd3 {[%clk 0:02:32.8]} 7... Nf5 {[%clk 0:02:56.6]} 8. Bxf5 {[%clk
0:02:14.7]} 8... exf5 {[%clk 0:02:57.5]} 9. Nc3 {[%clk 0:02:15.1]} 9... Be6
{[%clk 0:02:54.2]} 10. O-O {[%clk 0:02:14]} 10... Be7 {[%clk 0:02:53.5]} 11. Ne2
{[%clk 0:02:10.8]} 11... g5 {[%clk 0:02:34.4]} 12. Nc3 {[%clk 0:01:59.6]} 12...
h6 {[%clk 0:02:31.6]} 13. Re1 {[%clk 0:01:48.9]} 13... Qd7 {[%clk 0:02:24.6]}
14. Nb5 {[%clk 0:01:45.5]} 14... a6 {[%clk 0:02:21.2]} 15. Nd6+ {[%clk
0:01:45.6]} 15... Bxd6 {[%clk 0:02:21.3]} 16. exd6 {[%clk 0:01:46.5]} 16... Qxd6
{[%clk 0:02:21.2]} 17. Ne5 {[%clk 0:01:46.7]} 17... O-O-O {[%clk 0:02:15.1]} 18.
Nxc6 {[%clk 0:01:43.9]} 18... Qxc6 {[%clk 0:02:16]} 19. Bxg5 {[%clk 0:01:40.3]}
19... hxg5 {[%clk 0:02:12.3]} 20. Rc1 {[%clk 0:01:39.6]} 20... Rd6 {[%clk
0:01:57.1]} 21. Qd2 {[%clk 0:01:31.5]} 21... g4 {[%clk 0:01:55.4]} 22. Qf4
{[%clk 0:01:27.7]} 22... Kd7 {[%clk 0:01:51.9]} 23. Rxc6 {[%clk 0:01:27.4]}
23... Rxc6 {[%clk 0:01:52.8]} 24. f3 {[%clk 0:01:12.9]} 24... Rc2 {[%clk
0:01:49.2]} 25. fxg4 {[%clk 0:01:10]} 25... fxg4 {[%clk 0:01:50.1]} 26. Rxe6
{[%clk 0:00:41.1]} 26... fxe6 {[%clk 0:01:49.2]} 27. Qf7+ {[%clk 0:00:41]} 27...
Kd6 {[%clk 0:01:48.7]} 28. Qf4+ {[%clk 0:00:37.9]} 28... Kd7 {[%clk 0:01:48.7]}
29. Qf7+ {[%clk 0:00:28.7]} 29... Kd6 {[%clk 0:01:48.2]} 30. Qxb7 {[%clk
0:00:24.4]} 30... Rhc8 {[%clk 0:01:45.1]} 31. Qxa6+ {[%clk 0:00:24.2]} 31...
R8c6 {[%clk 0:01:44.8]} 32. Qa3+ {[%clk 0:00:24.3]} 32... Kd7 {[%clk 0:01:43.4]}
33. h3 {[%clk 0:00:24.2]} 33... gxh3 {[%clk 0:01:32.2]} 34. gxh3 {[%clk
0:00:19.9]} 34... Re2 {[%clk 0:01:12.1]} 35. Qa7+ {[%clk 0:00:12.4]} 35... Kd6
{[%clk 0:01:07.6]} 36. Qa3+ {[%clk 0:00:12.5]} 36... Kc7 {[%clk 0:01:07.7]} 37.
Qe7+ {[%clk 0:00:10.9]} 37... Kb6 {[%clk 0:01:05.4]} 38. Qb4+ {[%clk 0:00:11]}
38... Ka6 {[%clk 0:01:02.9]} 39. Qa4+ {[%clk 0:00:08.4]} 39... Kb6 {[%clk
0:01:02.9]} 40. Kf1 {[%clk 0:00:09]} 40... Rxb2 {[%clk 0:00:54.6]} 41. Qd1
{[%clk 0:00:03.5]} 41... Rcc2 {[%clk 0:00:50.8]} 42. h4 {[%clk 0:00:03.9]} 42...
Rh2 {[%clk 0:00:49]} 43. Qf3 {[%clk 0:00:00.2]} 43... Rb1+ {[%clk 0:00:47.7]}
0-1

[Event "Late-Titled-Tuesday-Blitz-May-07-2024"]
[Site "Chess.com"]
[Date "2024.05.07"]
[Round "2"]
[White "Zampronha1971"]
[Black "sammartin99"]
[Result "1-0"]
[WhiteElo "2454"]
[BlackElo "1922"]
[TimeControl "180+1"]
[EndTime "14:17:25 PDT"]
[Termination "Zampronha1971 won on time"]

1. e4 {[%clk 0:03:00.9]} 1... c5 {[%clk 0:02:56.6]} 2. Nf3 {[%clk 0:03:00.8]}
2... Nc6 {[%clk 0:02:55.4]} 3. d4 {[%clk 0:03:01.2]} 3... cxd4 {[%clk
0:02:54.5]} 4. Nxd4 {[%clk 0:03:02.1]} 4... Nf6 {[%clk 0:02:53.9]} 5. Nc3 {[%clk
0:03:02]} 5... e5 {[%clk 0:02:53.7]} 6. Ndb5 {[%clk 0:03:02]} 6... d6 {[%clk
0:02:54.1]} 7. Bg5 {[%clk 0:03:01.7]} 7... a6 {[%clk 0:02:54.1]} 8. Na3 {[%clk
0:03:01.9]} 8... b5 {[%clk 0:02:54.2]} 9. Nd5 {[%clk 0:03:01.9]} 9... Be7 {[%clk
0:02:53.7]} 10. Bxf6 {[%clk 0:03:02.4]} 10... Bxf6 {[%clk 0:02:53.9]} 11. c3
{[%clk 0:03:03.3]} 11... Bg5 {[%clk 0:02:50.8]} 12. Nc2 {[%clk 0:03:03.6]} 12...
O-O {[%clk 0:02:47.5]} 13. a4 {[%clk 0:03:04.2]} 13... bxa4 {[%clk 0:02:45.3]}
14. Rxa4 {[%clk 0:03:05.1]} 14... a5 {[%clk 0:02:35]} 15. Bc4 {[%clk 0:03:05.2]}
15... Be6 {[%clk 0:02:23.5]} 16. O-O {[%clk 0:03:00]} 16... Rb8 {[%clk 0:02:13]}
17. Ra2 {[%clk 0:02:57.2]} 17... Kh8 {[%clk 0:01:58.6]} 18. Nce3 {[%clk
0:02:57]} 18... Bxe3 {[%clk 0:01:52.4]} 19. Nxe3 {[%clk 0:02:57.9]} 19... Qc7
{[%clk 0:01:40]} 20. Qd3 {[%clk 0:02:51.2]} 20... Rb6 {[%clk 0:01:25]} 21. Rd1
{[%clk 0:02:47.4]} 21... Ne7 {[%clk 0:01:17.6]} 22. Bxe6 {[%clk 0:02:43.1]}
22... fxe6 {[%clk 0:01:18.5]} 23. Nc4 {[%clk 0:02:40.1]} 23... Rbb8 {[%clk
0:00:46.2]} 24. Nxd6 {[%clk 0:02:37.9]} 24... Ng6 {[%clk 0:00:35.7]} 25. g3
{[%clk 0:02:23]} 25... Qb6 {[%clk 0:00:18.2]} 26. Qe3 {[%clk 0:01:48.7]} 26...
Qb3 {[%clk 0:00:17.6]} 27. Rda1 {[%clk 0:01:46.1]} 27... Rbd8 {[%clk 0:00:17.5]}
28. Qc5 {[%clk 0:01:29.7]} 28... h5 {[%clk 0:00:09.5]} 29. Rxa5 {[%clk
0:01:06.8]} 29... Qc2 {[%clk 0:00:03.1]} 30. Rf1 {[%clk 0:01:06.1]} 30... h4
{[%clk 0:00:02.6]} 31. Nc4 {[%clk 0:00:54.5]} 31... Qe2 {[%clk 0:00:02.2]} 32.
Nxe5 {[%clk 0:00:43.9]} 32... Nf4 {[%clk 0:00:01.2]} 33. gxf4 {[%clk 0:00:35.7]}
33... h3 {[%clk 0:00:01.7]} 34. Qe3 {[%clk 0:00:31.6]} 34... Qc2 {[%clk
0:00:00.3]} 35. Ng6+ {[%clk 0:00:26.4]} 1-0

[Event "Late-Titled-Tuesday-Blitz-May-07-2024"]
[Site "Chess.com"]
[Date "2024.05.07"]
[Round "2"]
[White "bascheyaro"]
[Black "BabageldiAnnaberdiyev"]
[Result "1-0"]
[WhiteElo "2837"]
[BlackElo "2571"]
[TimeControl "180+1"]
[EndTime "14:17:26 PDT"]
[Termination "bascheyaro won by resignation"]

1. d4 {[%clk 0:02:56.8]} 1... Nf6 {[%clk 0:02:59.1]} 2. Nf3 {[%clk 0:02:56.9]}
2... e6 {[%clk 0:02:59.3]} 3. Bg5 {[%clk 0:02:57]} 3... d5 {[%clk 0:02:59.1]} 4.
e3 {[%clk 0:02:57.5]} 4... h6 {[%clk 0:02:57.8]} 5. Bh4 {[%clk 0:02:57.5]} 5...
a6 {[%clk 0:02:58.3]} 6. c4 {[%clk 0:02:57.8]} 6... c6 {[%clk 0:02:58.3]} 7. Nc3
{[%clk 0:02:57.7]} 7... Be7 {[%clk 0:02:58.3]} 8. Qc2 {[%clk 0:02:57.8]} 8...
Nbd7 {[%clk 0:02:55.6]} 9. Rd1 {[%clk 0:02:57.8]} 9... Ng8 {[%clk 0:02:48.9]}
10. Bg3 {[%clk 0:02:57.5]} 10... Ngf6 {[%clk 0:02:48.4]} 11. a3 {[%clk
0:02:56.5]} 11... a5 {[%clk 0:02:46.7]} 12. h3 {[%clk 0:02:53.4]} 12... O-O
{[%clk 0:02:45.7]} 13. Bd3 {[%clk 0:02:53]} 13... b6 {[%clk 0:02:44.2]} 14. cxd5
{[%clk 0:02:52.3]} 14... exd5 {[%clk 0:02:45.1]} 15. O-O {[%clk 0:02:51.9]}
15... Bb7 {[%clk 0:02:45.2]} 16. Rc1 {[%clk 0:02:52.2]} 16... Rc8 {[%clk
0:02:41.2]} 17. Rfd1 {[%clk 0:02:52.2]} 17... Re8 {[%clk 0:02:39.5]} 18. Ne5
{[%clk 0:02:50.6]} 18... Bf8 {[%clk 0:02:38.1]} 19. Bf5 {[%clk 0:02:49.7]} 19...
Qe7 {[%clk 0:02:29.1]} 20. Bh4 {[%clk 0:02:45.9]} 20... Nxe5 {[%clk 0:02:25.2]}
21. dxe5 {[%clk 0:02:32]} 21... Qxe5 {[%clk 0:02:26.1]} 22. Bg3 {[%clk
0:02:26.1]} 22... Qe7 {[%clk 0:02:22.7]} 23. Bxc8 {[%clk 0:02:26.3]} 23... Rxc8
{[%clk 0:02:23.1]} 24. Qf5 {[%clk 0:02:23.6]} 24... Qe6 {[%clk 0:02:18.2]} 25.
Qxe6 {[%clk 0:02:20.5]} 25... fxe6 {[%clk 0:02:19.1]} 26. Na4 {[%clk 0:02:17.1]}
26... b5 {[%clk 0:02:16.1]} 27. Nc5 {[%clk 0:02:17.3]} 27... Bxc5 {[%clk
0:02:13.8]} 28. Rxc5 {[%clk 0:02:18.2]} 28... a4 {[%clk 0:02:09.1]} 29. Rdc1
{[%clk 0:02:15.8]} 29... Ne4 {[%clk 0:02:04.6]} 30. R5c2 {[%clk 0:02:16]} 30...
c5 {[%clk 0:01:37.6]} 31. Be5 {[%clk 0:02:15.8]} 31... c4 {[%clk 0:01:37.5]} 32.
Bd4 {[%clk 0:02:15.9]} 32... Kf7 {[%clk 0:01:36]} 33. f3 {[%clk 0:02:15.1]}
33... Nd6 {[%clk 0:01:35.3]} 34. g4 {[%clk 0:02:15.3]} 34... Re8 {[%clk
0:01:32.5]} 35. Be5 {[%clk 0:02:13.7]} 35... Nc8 {[%clk 0:01:31.6]} 36. h4
{[%clk 0:02:12.7]} 36... Nb6 {[%clk 0:01:30.7]} 37. Kf2 {[%clk 0:02:08.5]} 37...
Nd7 {[%clk 0:01:31.1]} 38. Bc3 {[%clk 0:02:06.8]} 38... e5 {[%clk 0:01:26.5]}
39. Kg3 {[%clk 0:01:55.7]} 39... Ke6 {[%clk 0:01:26.4]} 40. Rf1 {[%clk
0:01:51.7]} 40... Nc5 {[%clk 0:01:25.3]} 41. h5 {[%clk 0:01:48.9]} 41... Rd8
{[%clk 0:01:22.7]} 42. Re2 {[%clk 0:01:42.7]} 42... Rd7 {[%clk 0:01:13.5]} 43.
Kh4 {[%clk 0:01:34.3]} 43... Rf7 {[%clk 0:01:05.7]} 44. f4 {[%clk 0:01:33.9]}
44... exf4 {[%clk 0:01:03.3]} 45. exf4+ {[%clk 0:01:34]} 45... Ne4 {[%clk
0:01:03]} 46. Bd4 {[%clk 0:01:33.8]} 46... Bc6 {[%clk 0:01:00.2]} 47. Ree1
{[%clk 0:01:33.3]} 47... Kd6 {[%clk 0:00:51.2]} 48. g5 {[%clk 0:01:33.2]} 48...
Bd7 {[%clk 0:00:44.5]} 49. g6 {[%clk 0:01:33.5]} 49... Re7 {[%clk 0:00:43.3]}
50. f5 {[%clk 0:01:33.4]} 50... Be8 {[%clk 0:00:33.8]} 51. f6 {[%clk 0:01:32.4]}
51... gxf6 {[%clk 0:00:33.8]} 52. Bxf6 {[%clk 0:01:32.5]} 52... Rd7 {[%clk
0:00:30.1]} 53. Bd4 {[%clk 0:01:27.1]} 53... Rd8 {[%clk 0:00:25.5]} 54. Rf8
{[%clk 0:01:25.3]} 54... Ke7 {[%clk 0:00:25.3]} 55. g7 {[%clk 0:01:24.8]} 55...
Bf7 {[%clk 0:00:25.7]} 56. Re3 {[%clk 0:01:10.6]} 56... Rxf8 {[%clk 0:00:19.3]}
57. Bc5+ {[%clk 0:01:10.7]} 1-0

[Event "Late-Titled-Tuesday-Blitz-May-07-2024"]
[Site "Chess.com"]
[Date "2024.05.07"]
[Round "2"]
[White "zimmm36"]
[Black "Smiechu"]
[Result "0-1"]
[WhiteElo "2749"]
[BlackElo "2440"]
[TimeControl "180+1"]
[EndTime "14:17:27 PDT"]
[Termination "Smiechu won by checkmate"]

1. e4 {[%clk 0:03:00.9]} 1... c5 {[%clk 0:02:59.6]} 2. Nf3 {[%clk 0:03:01.2]}
2... g6 {[%clk 0:02:59.3]} 3. d4 {[%clk 0:03:01.6]} 3... cxd4 {[%clk 0:02:59.7]}
4. Qxd4 {[%clk 0:03:02.1]} 4... Nf6 {[%clk 0:02:59.2]} 5. c4 {[%clk 0:03:02.6]}
5... Nc6 {[%clk 0:02:58.7]} 6. Qe3 {[%clk 0:03:02]} 6... d6 {[%clk 0:02:58.9]}
7. Nc3 {[%clk 0:03:02.2]} 7... Bg7 {[%clk 0:02:58.4]} 8. h3 {[%clk 0:03:02.7]}
8... O-O {[%clk 0:02:56.5]} 9. Be2 {[%clk 0:03:03.2]} 9... Bd7 {[%clk
0:02:50.6]} 10. O-O {[%clk 0:03:02.7]} 10... Rc8 {[%clk 0:02:49.6]} 11. b3
{[%clk 0:03:02.4]} 11... Nxe4 {[%clk 0:02:42.8]} 12. Bb2 {[%clk 0:02:57.9]}
12... Nxc3 {[%clk 0:02:32.5]} 13. Bxc3 {[%clk 0:02:58.8]} 13... a6 {[%clk
0:02:11.8]} 14. Rad1 {[%clk 0:02:54.6]} 14... Bxc3 {[%clk 0:02:08.4]} 15. Qxc3
{[%clk 0:02:55.5]} 15... Qa5 {[%clk 0:02:08.4]} 16. Qb2 {[%clk 0:02:55.6]} 16...
Rfd8 {[%clk 0:01:50.2]} 17. a3 {[%clk 0:02:53.7]} 17... b5 {[%clk 0:01:47.8]}
18. b4 {[%clk 0:02:49.2]} 18... Qb6 {[%clk 0:01:39.2]} 19. Rfe1 {[%clk
0:02:49.1]} 19... Be6 {[%clk 0:01:22]} 20. cxb5 {[%clk 0:02:28.8]} 20... axb5
{[%clk 0:01:21.8]} 21. Bd3 {[%clk 0:02:14.7]} 21... Bc4 {[%clk 0:01:12.5]} 22.
Bb1 {[%clk 0:02:11.4]} 22... f6 {[%clk 0:00:50.9]} 23. h4 {[%clk 0:02:09.9]}
23... Ne5 {[%clk 0:00:50.8]} 24. Nd4 {[%clk 0:02:06.2]} 24... Bf7 {[%clk
0:00:47]} 25. h5 {[%clk 0:02:01.7]} 25... Rc4 {[%clk 0:00:46.6]} 26. hxg6 {[%clk
0:01:59.7]} 26... hxg6 {[%clk 0:00:47.5]} 27. Ba2 {[%clk 0:01:49.6]} 27... Rc7
{[%clk 0:00:36.6]} 28. Bxf7+ {[%clk 0:01:48.9]} 28... Kxf7 {[%clk 0:00:36.7]}
29. Qb3+ {[%clk 0:01:49.2]} 29... Rc4 {[%clk 0:00:36.5]} 30. Nc2 {[%clk
0:01:30.7]} 30... Kg7 {[%clk 0:00:33.3]} 31. Ne3 {[%clk 0:01:30.7]} 31... Rh4
{[%clk 0:00:31.5]} 32. g3 {[%clk 0:01:25.8]} 32... Rh5 {[%clk 0:00:23.1]} 33.
Qe6 {[%clk 0:01:23]} 33... Rdh8 {[%clk 0:00:20.5]} 34. Qxe7+ {[%clk 0:01:22.6]}
34... Nf7 {[%clk 0:00:20.5]} 35. Kf1 {[%clk 0:01:21.7]} 35... Qc6 {[%clk
0:00:19.7]} 36. Ke2 {[%clk 0:01:19.8]} 36... Re5 {[%clk 0:00:16.8]} 37. Qa7
{[%clk 0:01:14.8]} 37... Qc4+ {[%clk 0:00:16.7]} 38. Rd3 {[%clk 0:01:14.9]}
38... Qc2+ {[%clk 0:00:12.8]} 39. Rd2 {[%clk 0:01:15.3]} 39... Qc4+ {[%clk
0:00:12.8]} 40. Kd1 {[%clk 0:01:15.8]} 40... Qb3+ {[%clk 0:00:12.1]} 41. Rc2
{[%clk 0:01:14]} 41... Rc8 {[%clk 0:00:10.3]} 42. Re2 {[%clk 0:01:14.3]} 42...
Qd3+ {[%clk 0:00:09.9]} 43. Red2 {[%clk 0:01:13.5]} 43... Qb3 {[%clk 0:00:09.8]}
44. Kc1 {[%clk 0:01:08.2]} 44... Rxc2+ {[%clk 0:00:08.2]} 45. Rxc2 {[%clk
0:01:09.1]} 45... Qd3 {[%clk 0:00:07.9]} 46. Rc7 {[%clk 0:01:06.9]} 46... Kh6
{[%clk 0:00:05.4]} 47. Rxf7 {[%clk 0:01:02.6]} 47... Qc3+ {[%clk 0:00:05.6]} 48.
Kd1 {[%clk 0:01:03]} 48... Qb3+ {[%clk 0:00:05.6]} 49. Ke2 {[%clk 0:01:02.3]}
49... Qb2+ {[%clk 0:00:05.1]} 50. Kf1 {[%clk 0:01:02.2]} 50... Qb1+ {[%clk
0:00:04.9]} 51. Kg2 {[%clk 0:01:01.7]} 51... Qe4+ {[%clk 0:00:04.8]} 52. Kh2
{[%clk 0:01:02.2]} 52... Rh5+ {[%clk 0:00:04.4]} 53. Kg1 {[%clk 0:01:00.1]}
53... Rh1# {[%clk 0:00:04.5]} 0-1

[Event "Late-Titled-Tuesday-Blitz-May-07-2024"]
[Site "Chess.com"]
[Date "2024.05.07"]
[Round "2"]
[White "nindjaxx8"]
[Black "AlejandroArias"]
[Result "1-0"]
[WhiteElo "2643"]
[BlackElo "2402"]
[TimeControl "180+1"]
[EndTime "14:17:29 PDT"]
[Termination "nindjaxx8 won on time"]

1. d4 {[%clk 0:03:00.9]} 1... e6 {[%clk 0:02:59.8]} 2. c4 {[%clk 0:03:00.9]}
2... b6 {[%clk 0:02:59.9]} 3. Nc3 {[%clk 0:03:01.2]} 3... Bb7 {[%clk 0:02:59.8]}
4. Nf3 {[%clk 0:03:01.8]} 4... Bb4 {[%clk 0:02:59.4]} 5. Bd2 {[%clk 0:02:57.9]}
5... f5 {[%clk 0:02:56.4]} 6. e3 {[%clk 0:02:54.8]} 6... Nf6 {[%clk 0:02:55.7]}
7. Be2 {[%clk 0:02:53.2]} 7... O-O {[%clk 0:02:54.8]} 8. O-O {[%clk 0:02:51.8]}
8... Bxc3 {[%clk 0:02:48.1]} 9. Bxc3 {[%clk 0:02:50.4]} 9... Ne4 {[%clk
0:02:49]} 10. Rc1 {[%clk 0:02:49.1]} 10... d6 {[%clk 0:02:46.7]} 11. Nd2 {[%clk
0:02:45.3]} 11... Nxc3 {[%clk 0:02:34.6]} 12. Rxc3 {[%clk 0:02:44]} 12... Nd7
{[%clk 0:02:35.5]} 13. Bf3 {[%clk 0:02:43]} 13... Qc8 {[%clk 0:02:28.3]} 14. Re1
{[%clk 0:02:29.4]} 14... e5 {[%clk 0:02:11.4]} 15. dxe5 {[%clk 0:02:11.1]} 15...
Nxe5 {[%clk 0:02:09.7]} 16. Bd5+ {[%clk 0:02:11.5]} 16... Kh8 {[%clk 0:02:05]}
17. Nf3 {[%clk 0:02:01.3]} 17... c6 {[%clk 0:01:51.4]} 18. Nxe5 {[%clk
0:01:57.6]} 18... dxe5 {[%clk 0:01:52.3]} 19. Bf3 {[%clk 0:01:57.6]} 19... e4
{[%clk 0:01:51.9]} 20. Be2 {[%clk 0:01:57.2]} 20... c5 {[%clk 0:01:50.7]} 21.
Qc1 {[%clk 0:01:53.9]} 21... Qc7 {[%clk 0:01:39.8]} 22. Rd1 {[%clk 0:01:49.5]}
22... Rad8 {[%clk 0:01:39.5]} 23. Bf1 {[%clk 0:01:43.9]} 23... h6 {[%clk
0:01:31.4]} 24. g3 {[%clk 0:01:40.5]} 24... Rd6 {[%clk 0:01:28.7]} 25. Rc2
{[%clk 0:01:32.4]} 25... Rfd8 {[%clk 0:01:23.8]} 26. Rcd2 {[%clk 0:01:28.6]}
26... R8d7 {[%clk 0:01:23.7]} 27. Bh3 {[%clk 0:01:27.4]} 27... g6 {[%clk
0:01:17.6]} 28. Qc3+ {[%clk 0:01:18.9]} 28... Kh7 {[%clk 0:01:00.2]} 29. g4
{[%clk 0:00:59.6]} 29... Rxd2 {[%clk 0:00:55.3]} 30. Rxd2 {[%clk 0:01:00.5]}
30... f4 {[%clk 0:00:39.3]} 31. exf4 {[%clk 0:00:47.4]} 31... Rf7 {[%clk
0:00:37.1]} 32. f5 {[%clk 0:00:44]} 32... gxf5 {[%clk 0:00:35]} 33. gxf5 {[%clk
0:00:44.9]} 33... Rg7+ {[%clk 0:00:35.2]} 34. Kf1 {[%clk 0:00:22.9]} 1-0

[Event "Late-Titled-Tuesday-Blitz-May-07-2024"]
[Site "Chess.com"]
[Date "2024.05.07"]
[Round "2"]
[White "Narek_Ghimoyan"]
[Black "Casablanca"]
[Result "0-1"]
[WhiteElo "2393"]
[BlackElo "2704"]
[TimeControl "180+1"]
[EndTime "14:17:31 PDT"]
[Termination "Casablanca won by resignation"]

1. d4 {[%clk 0:03:00.9]} 1... Nf6 {[%clk 0:02:58.4]} 2. c4 {[%clk 0:03:01.2]}
2... c5 {[%clk 0:02:58.9]} 3. Nf3 {[%clk 0:02:58.4]} 3... cxd4 {[%clk
0:02:58.5]} 4. Nxd4 {[%clk 0:02:59.3]} 4... Nc6 {[%clk 0:02:59.1]} 5. Nc3 {[%clk
0:02:59.3]} 5... g6 {[%clk 0:02:59.1]} 6. g3 {[%clk 0:02:58.4]} 6... Bg7 {[%clk
0:02:59.5]} 7. Bg2 {[%clk 0:02:58.7]} 7... O-O {[%clk 0:02:58.9]} 8. O-O {[%clk
0:02:57.4]} 8... Ng4 {[%clk 0:02:58.8]} 9. Nc2 {[%clk 0:02:56.8]} 9... Bxc3
{[%clk 0:02:55.2]} 10. bxc3 {[%clk 0:02:56.2]} 10... Qa5 {[%clk 0:02:54.3]} 11.
Ne3 {[%clk 0:02:54.9]} 11... Qxc3 {[%clk 0:02:50.9]} 12. Rb1 {[%clk 0:02:53.2]}
12... Nxe3 {[%clk 0:02:38.5]} 13. Bxe3 {[%clk 0:02:52.1]} 13... Qxc4 {[%clk
0:02:31.6]} 14. Rc1 {[%clk 0:02:50.5]} 14... Qe6 {[%clk 0:02:29.7]} 15. Bd5
{[%clk 0:02:48.4]} 15... Qf6 {[%clk 0:02:30]} 16. Rc4 {[%clk 0:02:41]} 16... e6
{[%clk 0:02:27.7]} 17. Bxc6 {[%clk 0:02:29.8]} 17... dxc6 {[%clk 0:02:27.5]} 18.
Bd4 {[%clk 0:02:10.6]} 18... e5 {[%clk 0:02:25.9]} 19. Ba1 {[%clk 0:02:11.1]}
19... Bf5 {[%clk 0:02:20.5]} 20. f4 {[%clk 0:02:10.3]} 20... Rad8 {[%clk
0:02:18.4]} 21. Qc1 {[%clk 0:02:08.7]} 21... Qe6 {[%clk 0:02:16.3]} 22. fxe5
{[%clk 0:02:06.5]} 22... Rd5 {[%clk 0:02:13.3]} 23. Rh4 {[%clk 0:02:04.5]} 23...
Rfd8 {[%clk 0:01:11.5]} 24. e4 {[%clk 0:01:58.5]} 24... Rd2 {[%clk 0:01:09.2]}
25. Bc3 {[%clk 0:01:50.5]} 25... Qxa2 {[%clk 0:00:58.6]} 26. Bxd2 {[%clk
0:01:45.6]} 26... Rxd2 {[%clk 0:00:59.5]} 27. exf5 {[%clk 0:01:28.9]} 27... Qd5
{[%clk 0:00:55.3]} 28. Qxd2 {[%clk 0:00:38.3]} 28... Qxd2 {[%clk 0:00:55.1]} 29.
e6 {[%clk 0:00:39.2]} 29... fxe6 {[%clk 0:00:55.4]} 30. f6 {[%clk 0:00:39.3]}
30... h5 {[%clk 0:00:48]} 31. f7+ {[%clk 0:00:39.2]} 31... Kf8 {[%clk
0:00:48.6]} 32. Rhf4 {[%clk 0:00:39.2]} 32... Qe3+ {[%clk 0:00:42.1]} 33. R1f2
{[%clk 0:00:38.2]} 33... Qe1+ {[%clk 0:00:40.5]} 34. Kg2 {[%clk 0:00:38.1]}
34... c5 {[%clk 0:00:36.3]} 35. Rf6 {[%clk 0:00:33.5]} 35... Qe4+ {[%clk
0:00:34.7]} 36. Kh3 {[%clk 0:00:29.7]} 36... c4 {[%clk 0:00:35.6]} 37. R2f4
{[%clk 0:00:29.4]} 37... Qd3 {[%clk 0:00:33.3]} 38. Kh4 {[%clk 0:00:21.7]} 38...
Qd2 {[%clk 0:00:30.5]} 39. Rxe6 {[%clk 0:00:17.3]} 39... Qxh2+ {[%clk 0:00:27]}
40. Kg5 {[%clk 0:00:16.2]} 40... Qxg3+ {[%clk 0:00:27.9]} 41. Kh6 {[%clk
0:00:14.2]} 41... Qxf4+ {[%clk 0:00:25.5]} 42. Kxg6 {[%clk 0:00:15.1]} 42...
Qxf7+ {[%clk 0:00:25]} 0-1

[Event "Late-Titled-Tuesday-Blitz-May-07-2024"]
[Site "Chess.com"]
[Date "2024.05.07"]
[Round "2"]
[White "TheoSlade"]
[Black "yuriydovzik"]
[Result "0-1"]
[WhiteElo "2459"]
[BlackElo "2147"]
[TimeControl "180+1"]
[EndTime "14:17:31 PDT"]
[Termination "yuriydovzik won by resignation"]

1. d4 {[%clk 0:03:00.9]} 1... Nf6 {[%clk 0:02:57.1]} 2. c4 {[%clk 0:03:00.8]}
2... e6 {[%clk 0:02:56.8]} 3. g3 {[%clk 0:03:01]} 3... b6 {[%clk 0:02:56.5]} 4.
Bg2 {[%clk 0:03:01.2]} 4... d5 {[%clk 0:02:54.7]} 5. cxd5 {[%clk 0:02:59.9]}
5... exd5 {[%clk 0:02:52.5]} 6. Nc3 {[%clk 0:02:59.6]} 6... c6 {[%clk
0:02:46.1]} 7. Nf3 {[%clk 0:02:59.6]} 7... Be7 {[%clk 0:02:41.3]} 8. O-O {[%clk
0:02:59.7]} 8... O-O {[%clk 0:02:38.2]} 9. Bg5 {[%clk 0:02:58]} 9... a5 {[%clk
0:02:37.2]} 10. Ne5 {[%clk 0:02:54.4]} 10... Bb7 {[%clk 0:02:34]} 11. Re1 {[%clk
0:02:46.8]} 11... h6 {[%clk 0:02:33.2]} 12. Bxf6 {[%clk 0:02:45.7]} 12... Bxf6
{[%clk 0:02:33]} 13. Nf3 {[%clk 0:02:24.6]} 13... b5 {[%clk 0:02:26.3]} 14. Rc1
{[%clk 0:02:18]} 14... Re8 {[%clk 0:02:24.1]} 15. Qc2 {[%clk 0:01:53.5]} 15...
Na6 {[%clk 0:02:13]} 16. e4 {[%clk 0:01:51.8]} 16... b4 {[%clk 0:02:06.3]} 17.
Na4 {[%clk 0:01:52.1]} 17... b3 {[%clk 0:01:53.4]} 18. axb3 {[%clk 0:01:41.5]}
18... Nb4 {[%clk 0:01:53.2]} 19. Qb1 {[%clk 0:01:39]} 19... Ba6 {[%clk
0:01:32.8]} 20. Nc5 {[%clk 0:01:32.2]} 20... Bb5 {[%clk 0:01:27.5]} 21. e5
{[%clk 0:01:30.3]} 21... Be7 {[%clk 0:01:25.5]} 22. Bf1 {[%clk 0:01:25.8]} 22...
Bxf1 {[%clk 0:01:12.9]} 23. Rxf1 {[%clk 0:01:26.4]} 23... Bxc5 {[%clk
0:01:10.4]} 24. Rxc5 {[%clk 0:01:25.4]} 24... Qd7 {[%clk 0:01:08.8]} 25. Nh4
{[%clk 0:01:22.2]} 25... Qg4 {[%clk 0:01:04.5]} 26. f4 {[%clk 0:01:22]} 26...
Qe2 {[%clk 0:01:00.7]} 27. f5 {[%clk 0:01:14.9]} 27... Qe3+ {[%clk 0:00:54.2]}
28. Kh1 {[%clk 0:01:14.3]} 28... Qxd4 {[%clk 0:00:52.7]} 29. Rcc1 {[%clk
0:01:12.1]} 29... Rxe5 {[%clk 0:00:48.6]} 30. Nf3 {[%clk 0:01:03.2]} 30... Qe4
{[%clk 0:00:41.3]} 31. Qa1 {[%clk 0:00:53.1]} 31... Rxf5 {[%clk 0:00:36.1]} 32.
Kg1 {[%clk 0:00:53.1]} 32... Rxf3 {[%clk 0:00:34.3]} 33. Rfe1 {[%clk 0:00:48.9]}
33... Re3 {[%clk 0:00:31.6]} 34. Rxe3 {[%clk 0:00:45.4]} 34... Qxe3+ {[%clk
0:00:31.6]} 35. Kh1 {[%clk 0:00:45.7]} 35... Nd3 {[%clk 0:00:28.7]} 36. Rf1
{[%clk 0:00:43.8]} 36... Qe2 {[%clk 0:00:24.2]} 37. Qb1 {[%clk 0:00:30.9]} 37...
Re8 {[%clk 0:00:19.4]} 38. Kg1 {[%clk 0:00:30.5]} 38... Re6 {[%clk 0:00:16.1]}
39. Rd1 {[%clk 0:00:30.2]} 39... Qe3+ {[%clk 0:00:14.4]} 40. Kh1 {[%clk
0:00:30.8]} 40... Nf2+ {[%clk 0:00:13.9]} 41. Kg2 {[%clk 0:00:30.7]} 41... Nxd1
{[%clk 0:00:10.6]} 42. Qxd1 {[%clk 0:00:30.3]} 42... Qe2+ {[%clk 0:00:10.8]} 43.
Qxe2 {[%clk 0:00:31]} 43... Rxe2+ {[%clk 0:00:10.9]} 44. Kf3 {[%clk 0:00:31.7]}
44... Rxb2 {[%clk 0:00:10.9]} 0-1